[Event "*** Titled Tuesday Blitz"]
[Site "Chess.com"]
[Date "2020.12.01"]
[Round "2"]
[White "MarcoRiehle"]
[Black "KononenkoD"]
[Result "1-0"]
[WhiteElo "2670"]
[BlackElo "2368"]
[TimeControl "180+1"]
[EndTime "10:13:40 PST"]
[Termination "MarcoRiehle won by resignation"]

1. e4 {[%clk 0:03:00.7]} 1... c6 {[%clk 0:02:59]} 2. c4 {[%clk 0:02:59.8]} 2...
d5 {[%clk 0:02:59.7]} 3. exd5 {[%clk 0:03:00.7]} 3... cxd5 {[%clk 0:03:00.1]} 4.
cxd5 {[%clk 0:03:01.6]} 4... Nf6 {[%clk 0:03:00.4]} 5. Nc3 {[%clk 0:03:01.7]}
5... g6 {[%clk 0:03:00.4]} 6. Bc4 {[%clk 0:03:01]} 6... Bg7 {[%clk 0:02:59.9]}
7. Nf3 {[%clk 0:03:01.2]} 7... O-O {[%clk 0:02:59.9]} 8. O-O {[%clk 0:03:01.6]}
8... a6 {[%clk 0:02:59.8]} 9. a4 {[%clk 0:03:01.1]} 9... a5 {[%clk 0:02:56]} 10.
d4 {[%clk 0:02:58.2]} 10... Nbd7 {[%clk 0:02:56.1]} 11. Qb3 {[%clk 0:02:53.1]}
11... Nb6 {[%clk 0:02:56.4]} 12. Re1 {[%clk 0:02:52.2]} 12... Nxc4 {[%clk
0:02:51.8]} 13. Qxc4 {[%clk 0:02:52]} 13... Bf5 {[%clk 0:02:49]} 14. Bg5 {[%clk
0:02:48.4]} 14... Re8 {[%clk 0:02:40.5]} 15. Qb3 {[%clk 0:02:44.6]} 15... Qc7
{[%clk 0:02:25.8]} 16. Rac1 {[%clk 0:02:41.8]} 16... Rac8 {[%clk 0:02:20.7]} 17.
Ne5 {[%clk 0:02:39.5]} 17... Qd6 {[%clk 0:02:07.9]} 18. Bf4 {[%clk 0:02:27.6]}
18... Qa6 {[%clk 0:02:03.5]} 19. d6 {[%clk 0:02:24.3]} 19... e6 {[%clk
0:01:47.4]} 20. d7 {[%clk 0:02:24.2]} 20... Nxd7 {[%clk 0:01:45.1]} 21. Nxd7
{[%clk 0:02:25.1]} 21... Bxd4 {[%clk 0:01:42.3]} 22. Be5 {[%clk 0:02:23.5]}
22... Bxe5 {[%clk 0:01:36]} 23. Nxe5 {[%clk 0:02:22]} 23... Rc5 {[%clk
0:01:35.1]} 24. Nd7 {[%clk 0:02:19.3]} 1-0

[Event "*** Titled Tuesday Blitz"]
[Site "Chess.com"]
[Date "2020.12.01"]
[Round "2"]
[White "DonPreuss"]
[Black "Oglob71"]
[Result "0-1"]
[WhiteElo "2237"]
[BlackElo "2442"]
[TimeControl "180+1"]
[EndTime "10:13:45 PST"]
[Termination "Oglob71 won by resignation"]

1. d4 {[%clk 0:03:00.7]} 1... Nf6 {[%clk 0:02:58.2]} 2. Nc3 {[%clk 0:02:59.8]}
2... e6 {[%clk 0:02:57.2]} 3. e4 {[%clk 0:02:59.7]} 3... d5 {[%clk 0:02:57.5]}
4. exd5 {[%clk 0:02:59.8]} 4... exd5 {[%clk 0:02:56.4]} 5. Bd3 {[%clk
0:02:59.8]} 5... c6 {[%clk 0:02:47.7]} 6. Nge2 {[%clk 0:02:59.9]} 6... Bd6
{[%clk 0:02:45.9]} 7. Ng3 {[%clk 0:02:54.3]} 7... O-O {[%clk 0:02:44.1]} 8. O-O
{[%clk 0:02:54.3]} 8... Re8 {[%clk 0:02:41.4]} 9. Bg5 {[%clk 0:02:54.1]} 9... h6
{[%clk 0:02:40.5]} 10. Bd2 {[%clk 0:02:42.6]} 10... Nbd7 {[%clk 0:02:36.5]} 11.
f4 {[%clk 0:02:41.4]} 11... Nb6 {[%clk 0:02:33.2]} 12. Nf5 {[%clk 0:02:39.3]}
12... Bf8 {[%clk 0:02:31.1]} 13. Qf3 {[%clk 0:02:35.2]} 13... Nc4 {[%clk
0:02:31]} 14. Bc1 {[%clk 0:02:18.6]} 14... Bxf5 {[%clk 0:02:26.4]} 15. Bxf5
{[%clk 0:02:18]} 15... Nd6 {[%clk 0:02:27]} 16. Bd3 {[%clk 0:02:16.2]} 16...
Nde4 {[%clk 0:02:27.2]} 17. Be3 {[%clk 0:01:52.8]} 17... Qe7 {[%clk 0:02:25.2]}
18. Rfe1 {[%clk 0:01:52.4]} 18... Qb4 {[%clk 0:02:24]} 19. Nd1 {[%clk
0:01:29.3]} 19... Qxe1+ {[%clk 0:02:20.3]} 20. Bf1 {[%clk 0:01:27.7]} 20... Nd2
{[%clk 0:02:12.8]} 21. Bxd2 {[%clk 0:01:25.9]} 21... Qxd2 {[%clk 0:02:12.7]} 22.
Nf2 {[%clk 0:01:22.4]} 22... Qxd4 {[%clk 0:02:11.2]} 0-1

[Event "*** Titled Tuesday Blitz"]
[Site "Chess.com"]
[Date "2020.12.01"]
[Round "2"]
[White "Bwert2602"]
[Black "ambaixador"]
[Result "0-1"]
[WhiteElo "2213"]
[BlackElo "2435"]
[TimeControl "180+1"]
[EndTime "10:14:07 PST"]
[Termination "ambaixador won by resignation"]

1. d4 {[%clk 0:03:00.6]} 1... d5 {[%clk 0:02:58.6]} 2. Nc3 {[%clk 0:02:59.1]}
2... g6 {[%clk 0:02:52.7]} 3. h4 {[%clk 0:02:58]} 3... h5 {[%clk 0:02:50]} 4. e4
{[%clk 0:02:56.3]} 4... dxe4 {[%clk 0:02:49.5]} 5. Nxe4 {[%clk 0:02:56.6]} 5...
Bg7 {[%clk 0:02:50.4]} 6. Nf3 {[%clk 0:02:53.4]} 6... Nd7 {[%clk 0:02:45.3]} 7.
Bc4 {[%clk 0:02:51.2]} 7... Nb6 {[%clk 0:02:42.1]} 8. Bb3 {[%clk 0:02:45.2]}
8... Bg4 {[%clk 0:02:25.3]} 9. Qd3 {[%clk 0:02:26.2]} 9... e6 {[%clk 0:02:11.6]}
10. Bg5 {[%clk 0:02:13.5]} 10... Ne7 {[%clk 0:02:09.6]} 11. Nf6+ {[%clk
0:02:10.2]} 11... Kf8 {[%clk 0:02:04.6]} 12. Ne5 {[%clk 0:02:09]} 12... Bf5
{[%clk 0:02:03.6]} 13. Qd2 {[%clk 0:01:59.2]} 13... Nbd5 {[%clk 0:01:50.5]} 14.
Bxd5 {[%clk 0:01:52.5]} 14... exd5 {[%clk 0:01:51.4]} 15. O-O-O {[%clk
0:01:46.9]} 15... Qd6 {[%clk 0:01:41]} 0-1

[Event "*** Titled Tuesday Blitz"]
[Site "Chess.com"]
[Date "2020.12.01"]
[Round "2"]
[White "Alomaterapia"]
[Black "szefru"]
[Result "1-0"]
[WhiteElo "2435"]
[BlackElo "2217"]
[TimeControl "180+1"]
[EndTime "10:14:10 PST"]
[Termination "Alomaterapia won by resignation"]

1. e4 {[%clk 0:03:00.2]} 1... e5 {[%clk 0:02:58.8]} 2. Nf3 {[%clk 0:02:58.6]}
2... Nc6 {[%clk 0:02:58.8]} 3. Bc4 {[%clk 0:02:58.9]} 3... Nd4 {[%clk
0:02:58.4]} 4. Nxd4 {[%clk 0:02:58]} 4... exd4 {[%clk 0:02:58.4]} 5. O-O {[%clk
0:02:54.9]} 5... g6 {[%clk 0:02:55.4]} 6. d3 {[%clk 0:02:55]} 6... Bg7 {[%clk
0:02:55.1]} 7. f4 {[%clk 0:02:55]} 7... c6 {[%clk 0:02:53.2]} 8. Nd2 {[%clk
0:02:44]} 8... Ne7 {[%clk 0:02:52.7]} 9. Nf3 {[%clk 0:02:41.2]} 9... d5 {[%clk
0:02:51.5]} 10. exd5 {[%clk 0:02:31.8]} 10... Nxd5 {[%clk 0:02:50.4]} 11. Re1+
{[%clk 0:02:31.9]} 11... Be6 {[%clk 0:02:44.6]} 12. Ng5 {[%clk 0:02:32.3]} 12...
Qd7 {[%clk 0:02:29.3]} 13. Nxe6 {[%clk 0:02:32.3]} 13... fxe6 {[%clk 0:02:28.7]}
14. Qg4 {[%clk 0:02:32.9]} 14... Kf7 {[%clk 0:02:21]} 15. Bd2 {[%clk 0:02:32.1]}
15... Rae8 {[%clk 0:02:18.8]} 16. Re2 {[%clk 0:02:31.1]} 16... Nf6 {[%clk
0:02:18.2]} 17. Qh3 {[%clk 0:02:28.8]} 17... Re7 {[%clk 0:02:12.5]} 18. f5
{[%clk 0:02:23.3]} 18... gxf5 {[%clk 0:02:06.4]} 19. Qxf5 {[%clk 0:02:22.6]}
19... Rhe8 {[%clk 0:01:49.7]} 20. Rae1 {[%clk 0:02:21.1]} 20... Kf8 {[%clk
0:01:47.8]} 21. Bxe6 {[%clk 0:02:10]} 21... Qd6 {[%clk 0:01:45.8]} 22. Bh6
{[%clk 0:02:09.6]} 22... Rxe6 {[%clk 0:01:35.5]} 23. Rxe6 {[%clk 0:02:08.8]}
23... Rxe6 {[%clk 0:01:34.2]} 24. Rxe6 {[%clk 0:02:05.1]} 24... Qd7 {[%clk
0:01:28.2]} 25. Rxf6+ {[%clk 0:01:51.3]} 1-0

[Event "*** Titled Tuesday Blitz"]
[Site "Chess.com"]
[Date "2020.12.01"]
[Round "2"]
[White "Kostya_Nikologorskiy"]
[Black "ljuks68"]
[Result "1-0"]
[WhiteElo "2707"]
[BlackElo "2380"]
[TimeControl "180+1"]
[EndTime "10:14:23 PST"]
[Termination "Kostya_Nikologorskiy won by resignation"]

1. d4 {[%clk 0:02:23.4]} 1... d5 {[%clk 0:02:56.4]} 2. c4 {[%clk 0:02:22.8]}
2... c6 {[%clk 0:02:56.4]} 3. Nc3 {[%clk 0:02:22.1]} 3... Nf6 {[%clk 0:02:56.8]}
4. e3 {[%clk 0:02:22.5]} 4... e6 {[%clk 0:02:56.2]} 5. Nf3 {[%clk 0:02:23.1]}
5... Nbd7 {[%clk 0:02:56.2]} 6. Qc2 {[%clk 0:02:23.7]} 6... Bd6 {[%clk
0:02:54.3]} 7. g4 {[%clk 0:02:24]} 7... h6 {[%clk 0:02:50.4]} 8. Rg1 {[%clk
0:02:23.4]} 8... dxc4 {[%clk 0:02:28.4]} 9. Bxc4 {[%clk 0:02:21]} 9... b5 {[%clk
0:02:28.7]} 10. Be2 {[%clk 0:02:20.3]} 10... Bb7 {[%clk 0:02:25.9]} 11. e4
{[%clk 0:02:20]} 11... e5 {[%clk 0:02:25.1]} 12. Be3 {[%clk 0:02:15.3]} 12...
exd4 {[%clk 0:01:47.1]} 13. Bxd4 {[%clk 0:02:04.4]} 13... Bf4 {[%clk 0:01:45.9]}
14. e5 {[%clk 0:01:58.5]} 14... Nd5 {[%clk 0:01:37.2]} 15. Nxd5 {[%clk
0:01:46.1]} 15... cxd5 {[%clk 0:01:36.5]} 16. Qf5 {[%clk 0:01:47]} 16... Bg5
{[%clk 0:01:23.9]} 17. e6 {[%clk 0:01:46.2]} 17... Nf6 {[%clk 0:01:20.9]} 18.
Bxb5+ {[%clk 0:01:32]} 18... Kf8 {[%clk 0:01:17.9]} 19. Bc5+ {[%clk 0:01:31.8]}
1-0

[Event "*** Titled Tuesday Blitz"]
[Site "Chess.com"]
[Date "2020.12.01"]
[Round "2"]
[White "enriquebutti"]
[Black "Akmal_Fayzullaev"]
[Result "0-1"]
[WhiteElo "2025"]
[BlackElo "2355"]
[TimeControl "180+1"]
[EndTime "10:14:28 PST"]
[Termination "Akmal_Fayzullaev won by resignation"]

1. d4 {[%clk 0:02:59.4]} 1... Nf6 {[%clk 0:02:58.5]} 2. Nf3 {[%clk 0:02:58.7]}
2... g6 {[%clk 0:02:59.4]} 3. c4 {[%clk 0:02:57.9]} 3... Bg7 {[%clk 0:02:58.8]}
4. Nc3 {[%clk 0:02:57.1]} 4... c5 {[%clk 0:02:58.8]} 5. g3 {[%clk 0:02:55.3]}
5... O-O {[%clk 0:02:57.5]} 6. Bg2 {[%clk 0:02:54.2]} 6... d6 {[%clk 0:02:57.5]}
7. dxc5 {[%clk 0:02:53.8]} 7... Qa5 {[%clk 0:02:55.8]} 8. O-O {[%clk 0:02:48.6]}
8... dxc5 {[%clk 0:02:52.8]} 9. Ne5 {[%clk 0:02:47.5]} 9... Nbd7 {[%clk
0:02:48.3]} 10. Nxd7 {[%clk 0:02:43]} 10... Nxd7 {[%clk 0:02:48.1]} 11. Bd2
{[%clk 0:02:41.3]} 11... Ne5 {[%clk 0:02:37.1]} 12. Qb3 {[%clk 0:02:40.5]} 12...
Nc6 {[%clk 0:02:31.7]} 13. Rfd1 {[%clk 0:02:34.9]} 13... Nd4 {[%clk 0:02:27.8]}
14. Qa3 {[%clk 0:02:31]} 14... Qxa3 {[%clk 0:02:25.4]} 15. bxa3 {[%clk
0:02:30.5]} 15... Bg4 {[%clk 0:02:20.5]} 16. f3 {[%clk 0:02:27.2]} 16... Be6
{[%clk 0:02:18.6]} 17. Rab1 {[%clk 0:02:24.7]} 17... b6 {[%clk 0:02:13.9]} 18.
e3 {[%clk 0:02:18.1]} 18... Nc2 {[%clk 0:02:10]} 19. Nd5 {[%clk 0:02:17.6]}
19... Bxd5 {[%clk 0:02:05.5]} 20. cxd5 {[%clk 0:02:17.3]} 20... Nxa3 {[%clk
0:02:06.4]} 21. Rb3 {[%clk 0:02:16.5]} 21... Nc4 {[%clk 0:02:04.8]} 22. Bc1
{[%clk 0:02:16.1]} 22... Rad8 {[%clk 0:02:03.9]} 23. e4 {[%clk 0:02:15.7]} 23...
Bd4+ {[%clk 0:02:01.9]} 24. Kf1 {[%clk 0:02:15.3]} 24... e5 {[%clk 0:02:00.9]}
25. Ke2 {[%clk 0:02:12.1]} 25... Nd6 {[%clk 0:01:58.4]} 26. Be3 {[%clk
0:02:08.9]} 26... Rfe8 {[%clk 0:01:56.1]} 27. a4 {[%clk 0:02:04]} 27... f5
{[%clk 0:01:54]} 28. Rc1 {[%clk 0:01:56.9]} 28... fxe4 {[%clk 0:01:51.6]} 29.
fxe4 {[%clk 0:01:56.1]} 29... Rc8 {[%clk 0:01:51.1]} 30. Kd2 {[%clk 0:01:52.4]}
30... Rc7 {[%clk 0:01:48.2]} 31. a5 {[%clk 0:01:45]} 31... b5 {[%clk 0:01:45.8]}
32. Bxd4 {[%clk 0:01:42.2]} 32... exd4 {[%clk 0:01:46.7]} 0-1

[Event "*** Titled Tuesday Blitz"]
[Site "Chess.com"]
[Date "2020.12.01"]
[Round "2"]
[White "mapleaff"]
[Black "Juanovic"]
[Result "0-1"]
[WhiteElo "2388"]
[BlackElo "2175"]
[TimeControl "180+1"]
[EndTime "10:14:32 PST"]
[Termination "Juanovic won by resignation"]

1. e4 {[%clk 0:03:00.1]} 1... c5 {[%clk 0:02:56.1]} 2. Nf3 {[%clk 0:02:59.5]}
2... d6 {[%clk 0:02:55.3]} 3. Nc3 {[%clk 0:02:55.7]} 3... Nc6 {[%clk 0:02:53]}
4. d4 {[%clk 0:02:55.6]} 4... cxd4 {[%clk 0:02:52.9]} 5. Nxd4 {[%clk 0:02:56.5]}
5... g6 {[%clk 0:02:50.7]} 6. Be3 {[%clk 0:02:55.6]} 6... Bg7 {[%clk 0:02:50.6]}
7. Bc4 {[%clk 0:02:55.9]} 7... Nf6 {[%clk 0:02:50.1]} 8. f3 {[%clk 0:02:53.2]}
8... O-O {[%clk 0:02:50]} 9. Qd2 {[%clk 0:02:52.8]} 9... Bd7 {[%clk 0:02:50.2]}
10. O-O-O {[%clk 0:02:52.5]} 10... Rc8 {[%clk 0:02:50.1]} 11. Bb3 {[%clk
0:02:52.9]} 11... Ne5 {[%clk 0:02:50.2]} 12. h4 {[%clk 0:02:53.3]} 12... Nc4
{[%clk 0:02:48.3]} 13. Bxc4 {[%clk 0:02:52.6]} 13... Rxc4 {[%clk 0:02:49.2]} 14.
h5 {[%clk 0:02:51.4]} 14... a6 {[%clk 0:02:40.1]} 15. hxg6 {[%clk 0:02:42]}
15... fxg6 {[%clk 0:02:36.8]} 16. g4 {[%clk 0:02:41.2]} 16... Qc7 {[%clk
0:02:35.1]} 17. Qh2 {[%clk 0:02:37.5]} 17... Rxc3 {[%clk 0:02:29.1]} 18. bxc3
{[%clk 0:02:35.8]} 18... Qxc3 {[%clk 0:02:23.3]} 19. Rd3 {[%clk 0:02:33.5]}
19... Qa1+ {[%clk 0:02:18.8]} 20. Kd2 {[%clk 0:02:32.8]} 20... Qxa2 {[%clk
0:02:18.8]} 21. Bg5 {[%clk 0:02:27.4]} 21... Qa5+ {[%clk 0:02:10.5]} 22. Ke2
{[%clk 0:02:21.1]} 22... Qxg5 {[%clk 0:02:09.8]} 23. c4 {[%clk 0:02:09.5]} 23...
h5 {[%clk 0:01:45.6]} 24. gxh5 {[%clk 0:02:00.5]} 24... Nxh5 {[%clk 0:01:44.2]}
25. Rg1 {[%clk 0:02:00.7]} 25... Nf4+ {[%clk 0:01:29]} 26. Kf1 {[%clk
0:02:00.3]} 26... Bh3+ {[%clk 0:00:58.8]} 27. Qxh3 {[%clk 0:01:59.2]} 27... Nxh3
{[%clk 0:00:59.7]} 28. Rxg5 {[%clk 0:01:59.7]} 28... Nxg5 {[%clk 0:01:00.6]} 0-1

[Event "*** Titled Tuesday Blitz"]
[Site "Chess.com"]
[Date "2020.12.01"]
[Round "2"]
[White "ChronicUnhappiness"]
[Black "kingofthenil"]
[Result "1-0"]
[WhiteElo "2339"]
[BlackElo "2740"]
[TimeControl "180+1"]
[EndTime "10:14:41 PST"]
[Termination "ChronicUnhappiness won by resignation"]

1. c4 {[%clk 0:01:49.3]} 1... Nf6 {[%clk 0:02:56.6]} 2. d4 {[%clk 0:01:49]} 2...
c5 {[%clk 0:02:54.9]} 3. d5 {[%clk 0:01:48.9]} 3... e6 {[%clk 0:02:55.2]} 4. Nc3
{[%clk 0:01:49.3]} 4... exd5 {[%clk 0:02:56.1]} 5. cxd5 {[%clk 0:01:49.7]} 5...
g6 {[%clk 0:02:57]} 6. Nf3 {[%clk 0:01:50.1]} 6... Bg7 {[%clk 0:02:57.2]} 7. Bf4
{[%clk 0:01:50.3]} 7... O-O {[%clk 0:02:58.1]} 8. e3 {[%clk 0:01:50.2]} 8... d6
{[%clk 0:02:57.8]} 9. h3 {[%clk 0:01:50.2]} 9... Na6 {[%clk 0:02:58.4]} 10. Bxa6
{[%clk 0:01:47.9]} 10... b6 {[%clk 0:02:58.2]} 11. Bxc8 {[%clk 0:01:46]} 11...
Rxc8 {[%clk 0:02:45.9]} 12. O-O {[%clk 0:01:45.4]} 12... Re8 {[%clk 0:02:44.2]}
13. a4 {[%clk 0:01:42.5]} 13... a6 {[%clk 0:02:44.1]} 14. Qd3 {[%clk 0:01:40.8]}
14... Ra8 {[%clk 0:02:45]} 15. Nd2 {[%clk 0:01:39.9]} 15... Nh5 {[%clk
0:02:31.5]} 16. Bh2 {[%clk 0:01:38]} 16... f5 {[%clk 0:02:30.7]} 17. Nc4 {[%clk
0:01:36.9]} 17... f4 {[%clk 0:02:14.9]} 18. Bxf4 {[%clk 0:01:34.7]} 18... Nxf4
{[%clk 0:02:14.6]} 19. exf4 {[%clk 0:01:35.6]} 19... Rb8 {[%clk 0:02:11.3]} 20.
Rae1 {[%clk 0:01:29.4]} 20... Rxe1 {[%clk 0:02:07.7]} 21. Rxe1 {[%clk
0:01:29.1]} 21... b5 {[%clk 0:02:08.2]} 22. axb5 {[%clk 0:01:28.7]} 22... axb5
{[%clk 0:02:09.1]} 23. Nxb5 {[%clk 0:01:14.1]} 23... Rxb5 {[%clk 0:01:50.1]} 24.
Nxd6 {[%clk 0:01:14.1]} 24... Qd7 {[%clk 0:01:27]} 1-0

[Event "*** Titled Tuesday Blitz"]
[Site "Chess.com"]
[Date "2020.12.01"]
[Round "2"]
[White "TudorAnton"]
[Black "Sacbutt"]
[Result "1-0"]
[WhiteElo "2458"]
[BlackElo "2263"]
[TimeControl "180+1"]
[EndTime "10:14:51 PST"]
[Termination "TudorAnton won by resignation"]

1. d4 {[%clk 0:03:00.6]} 1... Nf6 {[%clk 0:02:59]} 2. c4 {[%clk 0:02:59.2]} 2...
e6 {[%clk 0:02:59.2]} 3. Nc3 {[%clk 0:02:59]} 3... d5 {[%clk 0:02:58.2]} 4. Bg5
{[%clk 0:02:57.1]} 4... Be7 {[%clk 0:02:58.2]} 5. e3 {[%clk 0:02:56]} 5... O-O
{[%clk 0:02:58.3]} 6. Nf3 {[%clk 0:02:55.6]} 6... h6 {[%clk 0:02:58.8]} 7. Bh4
{[%clk 0:02:55.4]} 7... b6 {[%clk 0:02:58.8]} 8. cxd5 {[%clk 0:02:54.8]} 8...
Nxd5 {[%clk 0:02:59.7]} 9. Bxe7 {[%clk 0:02:55]} 9... Qxe7 {[%clk 0:02:59.9]}
10. Be2 {[%clk 0:02:55.2]} 10... Bb7 {[%clk 0:02:58.5]} 11. O-O {[%clk
0:02:55.6]} 11... Nd7 {[%clk 0:02:56.7]} 12. Nxd5 {[%clk 0:02:54.2]} 12... Bxd5
{[%clk 0:02:55.8]} 13. Rc1 {[%clk 0:02:55.1]} 13... c5 {[%clk 0:02:55.3]} 14.
dxc5 {[%clk 0:02:52.9]} 14... Nxc5 {[%clk 0:02:53.8]} 15. b4 {[%clk 0:02:53.5]}
15... Ne4 {[%clk 0:02:51.8]} 16. Qa4 {[%clk 0:02:53.6]} 16... Rac8 {[%clk
0:02:45.1]} 17. Nd4 {[%clk 0:02:52.7]} 17... Nc3 {[%clk 0:02:35.9]} 18. Qc2
{[%clk 0:02:44.3]} 18... Nxa2 {[%clk 0:02:07.6]} 19. Qxc8 {[%clk 0:02:37.3]}
19... Rxc8 {[%clk 0:02:08.5]} 20. Rxc8+ {[%clk 0:02:37.6]} 20... Kh7 {[%clk
0:02:09.1]} 21. b5 {[%clk 0:02:36.1]} 21... Bxg2 {[%clk 0:01:53.4]} 22. Bd3+
{[%clk 0:02:29.1]} 22... g6 {[%clk 0:01:35.3]} 23. Kxg2 {[%clk 0:02:27.6]} 23...
Qb7+ {[%clk 0:01:34.7]} 24. Rc6 {[%clk 0:02:27.4]} 24... Nb4 {[%clk 0:01:33.9]}
25. Be4 {[%clk 0:02:27.6]} 25... Nxc6 {[%clk 0:01:32.1]} 26. bxc6 {[%clk
0:02:26.2]} 26... Qc8 {[%clk 0:01:27.6]} 27. Rc1 {[%clk 0:02:24.7]} 27... e5
{[%clk 0:01:27.3]} 28. Ne2 {[%clk 0:02:11.4]} 28... f5 {[%clk 0:01:05.2]} 29.
Bd5 {[%clk 0:02:10]} 29... f4 {[%clk 0:01:00.6]} 30. c7 {[%clk 0:02:07.3]} 30...
fxe3 {[%clk 0:00:50.2]} 31. fxe3 {[%clk 0:02:07.2]} 31... a5 {[%clk 0:00:48.3]}
32. Be6 {[%clk 0:02:05.3]} 1-0

[Event "*** Titled Tuesday Blitz"]
[Site "Chess.com"]
[Date "2020.12.01"]
[Round "2"]
[White "vugarrasulov"]
[Black "GMaka"]
[Result "1-0"]
[WhiteElo "2897"]
[BlackElo "2442"]
[TimeControl "180+1"]
[EndTime "10:14:52 PST"]
[Termination "vugarrasulov won by resignation"]

1. d4 {[%clk 0:03:00.2]} 1... Nf6 {[%clk 0:02:58.3]} 2. c4 {[%clk 0:03:00.6]}
2... g6 {[%clk 0:02:58.3]} 3. Nc3 {[%clk 0:03:00]} 3... Bg7 {[%clk 0:02:57.8]}
4. e4 {[%clk 0:02:59.9]} 4... O-O {[%clk 0:02:57.8]} 5. f3 {[%clk 0:03:00.5]}
5... c6 {[%clk 0:02:57.2]} 6. Be3 {[%clk 0:02:55.5]} 6... a6 {[%clk 0:02:56.2]}
7. c5 {[%clk 0:02:54]} 7... b6 {[%clk 0:02:47]} 8. cxb6 {[%clk 0:02:49.3]} 8...
Qxb6 {[%clk 0:02:47.9]} 9. Qd2 {[%clk 0:02:49.7]} 9... d5 {[%clk 0:02:46.9]} 10.
Nge2 {[%clk 0:02:44.4]} 10... a5 {[%clk 0:02:46.5]} 11. h4 {[%clk 0:02:33.4]}
11... h5 {[%clk 0:02:34.8]} 12. e5 {[%clk 0:02:29.5]} 12... Ne8 {[%clk
0:02:23.5]} 13. Nf4 {[%clk 0:02:21.3]} 13... Nc7 {[%clk 0:02:02.5]} 14. g4
{[%clk 0:02:14.2]} 14... hxg4 {[%clk 0:02:03.4]} 15. h5 {[%clk 0:02:14.1]} 15...
g5 {[%clk 0:02:02.9]} 16. h6 {[%clk 0:02:14.2]} 16... gxf4 {[%clk 0:01:32.9]}
17. hxg7 {[%clk 0:02:13.4]} 17... fxe3 {[%clk 0:01:06.2]} 18. Qxe3 {[%clk
0:02:05.7]} 18... f6 {[%clk 0:00:46.1]} 19. gxf8=Q+ {[%clk 0:02:00.1]} 19...
Kxf8 {[%clk 0:00:45.3]} 20. Rh8+ {[%clk 0:01:56.8]} 20... Kf7 {[%clk 0:00:45.6]}
21. Rxc8 {[%clk 0:01:55.8]} 21... Qxb2 {[%clk 0:00:44.3]} 22. Rb1 {[%clk
0:01:54.5]} 22... Qa3 {[%clk 0:00:41.2]} 23. Rxc7 {[%clk 0:01:49.4]} 1-0

[Event "*** Titled Tuesday Blitz"]
[Site "Chess.com"]
[Date "2020.12.01"]
[Round "2"]
[White "Marty435"]
[Black "A-S-00"]
[Result "1-0"]
[WhiteElo "2653"]
[BlackElo "2308"]
[TimeControl "180+1"]
[EndTime "10:14:54 PST"]
[Termination "Marty435 won by resignation"]

1. e4 {[%clk 0:03:00.9]} 1... c5 {[%clk 0:02:55]} 2. Nf3 {[%clk 0:03:01.1]} 2...
Nc6 {[%clk 0:02:54.8]} 3. d4 {[%clk 0:03:01.2]} 3... cxd4 {[%clk 0:02:55.4]} 4.
Nxd4 {[%clk 0:03:02.1]} 4... Nf6 {[%clk 0:02:55.9]} 5. Nc3 {[%clk 0:03:02.6]}
5... e6 {[%clk 0:02:56.4]} 6. Ndb5 {[%clk 0:03:01.2]} 6... Bb4 {[%clk
0:02:55.3]} 7. a3 {[%clk 0:02:57.7]} 7... Bxc3+ {[%clk 0:02:55.3]} 8. Nxc3
{[%clk 0:02:58.6]} 8... d5 {[%clk 0:02:56]} 9. exd5 {[%clk 0:02:59.1]} 9... exd5
{[%clk 0:02:56.2]} 10. Bd3 {[%clk 0:02:59.9]} 10... O-O {[%clk 0:02:56.8]} 11.
O-O {[%clk 0:02:59.9]} 11... Bg4 {[%clk 0:02:56.9]} 12. Ne2 {[%clk 0:02:54.5]}
12... Ne5 {[%clk 0:02:37.4]} 13. Bb5 {[%clk 0:02:48.5]} 13... a6 {[%clk
0:02:32.7]} 14. Ba4 {[%clk 0:02:48.8]} 14... b5 {[%clk 0:02:05.5]} 15. Bb3
{[%clk 0:02:48.9]} 15... Nc4 {[%clk 0:02:05.4]} 16. f3 {[%clk 0:02:47.6]} 16...
Bh5 {[%clk 0:02:01.3]} 17. Nf4 {[%clk 0:02:41.3]} 17... Bg6 {[%clk 0:01:57.5]}
18. Nxg6 {[%clk 0:02:41.2]} 18... hxg6 {[%clk 0:01:56.8]} 19. Bg5 {[%clk
0:02:34.8]} 19... Qb6+ {[%clk 0:01:55.7]} 20. Kh1 {[%clk 0:02:34.9]} 20... Rad8
{[%clk 0:01:48.4]} 21. Qc1 {[%clk 0:02:29.6]} 21... Rd7 {[%clk 0:01:37.9]} 22.
c3 {[%clk 0:02:21.6]} 22... Nh5 {[%clk 0:01:10.1]} 23. Qc2 {[%clk 0:02:08.6]}
23... Ne3 {[%clk 0:00:54.1]} 24. Qf2 {[%clk 0:02:05.2]} 24... Re8 {[%clk
0:00:53.8]} 25. Rfe1 {[%clk 0:02:03.3]} 25... d4 {[%clk 0:00:44.9]} 26. cxd4
{[%clk 0:02:03.5]} 1-0

[Event "*** Titled Tuesday Blitz"]
[Site "Chess.com"]
[Date "2020.12.01"]
[Round "2"]
[White "HajduIstvanCM"]
[Black "Sanan_Sjugirov"]
[Result "0-1"]
[WhiteElo "1760"]
[BlackElo "2883"]
[TimeControl "180+1"]
[EndTime "10:15:00 PST"]
[Termination "Sanan_Sjugirov won by checkmate"]

1. e4 {[%clk 0:03:00.2]} 1... c5 {[%clk 0:02:59.7]} 2. Nf3 {[%clk 0:02:57.7]}
2... e6 {[%clk 0:02:59.9]} 3. c4 {[%clk 0:02:56.4]} 3... Nc6 {[%clk 0:02:59.7]}
4. d4 {[%clk 0:02:53.3]} 4... cxd4 {[%clk 0:03:00.6]} 5. Nxd4 {[%clk 0:02:52.7]}
5... Nf6 {[%clk 0:03:00.9]} 6. Nc3 {[%clk 0:02:49.8]} 6... Bb4 {[%clk
0:03:00.6]} 7. Nxc6 {[%clk 0:02:49.1]} 7... bxc6 {[%clk 0:03:01.1]} 8. Bd3
{[%clk 0:02:45.9]} 8... e5 {[%clk 0:03:01.2]} 9. O-O {[%clk 0:02:42.1]} 9... O-O
{[%clk 0:03:01.7]} 10. Bg5 {[%clk 0:02:36.5]} 10... h6 {[%clk 0:03:01.3]} 11.
Bh4 {[%clk 0:02:30.4]} 11... d6 {[%clk 0:02:55.3]} 12. Rc1 {[%clk 0:02:25]}
12... Bc5 {[%clk 0:02:52.5]} 13. h3 {[%clk 0:02:02.3]} 13... Be6 {[%clk
0:02:50.8]} 14. Qe2 {[%clk 0:01:45.2]} 14... Rb8 {[%clk 0:02:49.9]} 15. Rcd1
{[%clk 0:01:36.2]} 15... g5 {[%clk 0:02:50.4]} 16. Bg3 {[%clk 0:01:33.8]} 16...
Kg7 {[%clk 0:02:50.7]} 17. b3 {[%clk 0:01:23.8]} 17... Bd4 {[%clk 0:02:50.3]}
18. Nb1 {[%clk 0:01:19.6]} 18... h5 {[%clk 0:02:49.3]} 19. Kh1 {[%clk
0:01:06.4]} 19... h4 {[%clk 0:02:49.6]} 20. Bh2 {[%clk 0:01:05.1]} 20... g4
{[%clk 0:02:50.2]} 21. hxg4 {[%clk 0:00:55.9]} 21... Nxg4 {[%clk 0:02:51.1]} 22.
Bg1 {[%clk 0:00:48.6]} 22... h3 {[%clk 0:02:50.6]} 23. f3 {[%clk 0:00:35.9]}
23... hxg2+ {[%clk 0:02:32.9]} 24. Qxg2 {[%clk 0:00:28.4]} 24... Qh4+ {[%clk
0:02:33.7]} 25. Bh2 {[%clk 0:00:24.8]} 25... Qxh2+ {[%clk 0:02:32.4]} 26. Qxh2
{[%clk 0:00:23.4]} 26... Nxh2 {[%clk 0:02:33.3]} 27. Kxh2 {[%clk 0:00:23]} 27...
Kf6 {[%clk 0:02:34.2]} 28. f4 {[%clk 0:00:18.3]} 28... Rh8+ {[%clk 0:02:35.1]}
29. Kg2 {[%clk 0:00:17.7]} 29... Rbg8+ {[%clk 0:02:36]} 30. Kf3 {[%clk
0:00:16.2]} 30... Rh3+ {[%clk 0:02:36.4]} 31. Ke2 {[%clk 0:00:14.5]} 31... Rg2+
{[%clk 0:02:37.3]} 32. Ke1 {[%clk 0:00:13.8]} 32... Re3+ {[%clk 0:02:37.5]} 33.
Be2 {[%clk 0:00:06.5]} 33... Rexe2# {[%clk 0:02:38.4]} 0-1